bitfinex-derivatives/quotes_SOLF0:USTF0_20240824
["timestamp","ask_amount","ask_price","bid_price","bid_amount"]
[1724461717301,6.55728244,152.37,152.35,3.3241264]
[1724461717606,0.04442789,152.38,152.35,3.3241264]
[1724461718199,0.04442789,152.38,152.36,3.279]
[1724461721206,6.55701767,152.37,152.36,3.279]
[1724461721409,0.04442789,152.38,152.37,3.2788]
[1724461724308,3.2777,152.42,152.38,3.2784]
[1724461724516,6.55581717,152.41,152.35,23.3394242]
[1724461724705,23.46694238,152.44,152.38,3.2784]
[1724461724912,6.55530399,152.43,152.38,3.2784]
[1724461725106,6.55530399,152.42,152.38,3.2784]
[1724461725305,6.55530399,152.41,152.38,3.32075062]
[1724461725512,0.04295005,152.42,152.38,3.32075062]
[1724461725810,6.55534269,152.41,152.38,3.32075062]
[1724461726003,0.04295005,152.42,152.38,3.32075062]
[1724461726409,6.55532447,152.41,152.38,3.32075062]
[1724461726629,3.32065005,152.42,152.38,3.32075062]
[1724461726802,6.55549906,152.41,152.38,3.32075062]
[1724461727013,3.32065005,152.42,152.38,3.32075062]
[1724461727316,6.55549906,152.41,152.39,3.2783]
[1724461727509,0.04295005,152.42,152.38,0.04235062]
[1724461727817,3.34694238,152.44,152.41,3.2779]
[1724461728007,6.55478222,152.43,152.41,3.2779]
[1724461728208,3.23352004,152.44,152.41,3.2779]
[1724461728513,6.55478347,152.43,152.39,1.3628]
[1724461728814,0.04533585,152.43,152.39,1.40673732]
[1724461729110,0.04533585,152.43,152.4,3.2779]
[1724461730015,0.04533585,152.43,152.41,3.2779]
[1724461731917,0.04533585,152.43,152.39,4.61009882]
[1724461732658,3.32283585,152.43,152.39,7.88829882]
[1724461732814,0.04533585,152.43,152.39,7.88829882]
[1724461733124,0.04533585,152.43,152.39,4.68493732]
[1724461733914,3.32283585,152.43,152.39,4.68493732]
[1724461734110,0.04533585,152.43,152.4,3.2781]
[1724461734321,0.04533585,152.43,152.39,1.40673732]
[1724461734525,0.04533585,152.43,152.39,21.52673732]
[1724461735119,0.04533585,152.43,152.42,3.2777]
[1724461735310,20.12,152.49,152.42,3.2777]
[1724461735509,6.55435699,152.48,152.41,20.12]
[1724461735714,6.55435699,152.47,152.43,3.2773]
[1724461735915,6.55379372,152.46,152.43,3.2773]
[1724461736245,20.12,152.49,152.42,4.6223]
[1724461736416,0.04441748,152.47,152.44,0.04752085]
[1724461737115,6.55379536,152.46,152.44,0.04752085]
[1724461737314,3.277,152.46,152.44,0.04752085]
[1724461737521,0.04441748,152.47,152.44,3.32472085]
[1724461738324,0.04441748,152.47,152.44,0.04752085]
[1724461738713,0.04441748,152.47,152.45,3.2771]
[1724461740618,0.04441748,152.47,152.44,3.32472085]
[1724461742324,0.04441748,152.47,152.45,3.277]
[1724461742520,6.55314911,152.49,152.44,0.04752085]
[1724461742822,3.2755,152.53,152.48,3.2764]
[1724461743130,6.55252836,152.52,152.46,1.3471]
[1724461743325,20.12,152.55,152.48,3.2764]
[1724461743326,6.55252836,152.51,152.48,3.2764]
[1724461743629,0.04391638,152.51,152.48,3.32149286]
[1724461744023,0.04391638,152.51,152.48,0.04509286]
[1724461745628,6.55139793,152.55,152.49,20.12]
[1724461745826,20.12,152.59,152.5,1.2626]
[1724461746332,6.55006657,152.58,152.5,1.2626]
[1724461746522,20.12,152.59,152.5,1.2626]
[1724461746722,3.24761588,152.6,152.51,20.12]
[1724461746925,0.0451759,152.56,152.53,0.04606638]
[1724461747532,0.0451759,152.56,152.54,3.275]
[1724461747943,0.0451759,152.56,152.53,0.04606638]
[1724461748231,0.0451759,152.56,152.55,3.2749]
[1724461748823,20.12,152.63,152.57,3.2745]
[1724461749536,3.2732,152.63,152.58,3.2741]
[1724461750030,0.04484766,152.62,152.59,0.0472941]
[1724461751326,0.04484766,152.62,152.59,3.3211941]
[1724461751724,0.04484766,152.62,152.59,0.0472941]
[1724461752331,3.2738,152.6,152.59,0.0472941]
[1724461754646,20.12,152.61,152.53,1.2782]
[1724461754647,3.2745,152.58,152.53,1.2782]
[1724461754831,20.12,152.58,152.53,1.2782]
[1724461755233,20.12,152.58,152.52,1.3411]
[1724461755735,20.12,152.58,152.53,0.04140267]
[1724461755736,0.04522332,152.57,152.53,0.04140267]
[1724461756436,3.31982332,152.57,152.53,3.31670267]
[1724461756833,0.04522332,152.57,152.53,0.04140267]
[1724461757038,20.12,152.56,152.53,0.04140267]
[1724461757446,23.3948,152.56,152.53,0.04140267]
[1724461758138,20.12,152.56,152.53,3.31670267]
[1724461758434,3.31972332,152.57,152.53,3.31670267]
[1724461760227,0.04522332,152.57,152.54,3.275]
[1724461760431,0.04522332,152.57,152.53,0.04140267]
[1724461760839,0.04522332,152.57,152.53,3.31660267]
[1724461762037,0.04522332,152.57,152.54,3.2751]
[1724461764438,0.04522332,152.57,152.55,3.2749]
[1724461764639,0.04522332,152.57,152.53,0.04140267]
[1724461765739,0.04522332,152.57,152.54,3.2751]
[1724461766043,0.04522332,152.57,152.53,0.04140267]
[1724461767231,0.04522332,152.57,152.54,3.275]
[1724461768739,0.04522332,152.57,152.55,3.2749]
[1724461769331,0.04522332,152.57,152.53,0.04140267]
[1724461769842,0.04522332,152.57,152.53,3.30974382]
[1724461770030,0.04522332,152.57,152.53,0.04140267]
[1724461770735,0.04522332,152.57,152.54,3.32072891]
[1724461771349,0.04522332,152.57,152.54,6.59572891]
[1724461774444,0.04522332,152.57,152.54,3.275]
[1724461774645,0.04522332,152.57,152.53,3.28420479]
[1724461775142,3.31972332,152.57,152.53,3.28420479]
[1724461775341,0.04522332,152.57,152.53,6.55950479]
[1724461775538,0.04522332,152.57,152.53,3.28420479]
[1724461776445,0.04522332,152.57,152.54,3.275]
[1724461776839,0.04522332,152.57,152.53,3.28420479]
[1724461777245,0.04522332,152.57,152.55,3.2749]
[1724461777440,0.04522332,152.57,152.53,3.28420479]
[1724461777639,0.04522332,152.57,152.54,1.2931]
[1724461778042,0.04522332,152.57,152.55,1.3446]
[1724461779442,0.04522332,152.57,152.56,3.2747]
[1724461784949,0.04522332,152.57,152.55,4.6195]
[1724461786150,0.04522332,152.57,152.56,3.2747]
[1724461788448,20.12,152.63,152.57,3.2743]
[1724461788849,3.2737,152.61,152.57,3.2743]
[1724461789445,3.31998195,152.61,152.58,3.2742]
[1724461789953,0.04628195,152.61,152.58,3.2742]
[1724461790453,0.04628195,152.61,152.59,3.274]
[1724461795850,0.04628195,152.61,152.58,3.2742]
[1724461796053,3.31998195,152.61,152.58,3.2742]
[1724461796554,3.2739,152.6,152.57,3.32203208]
[1724461798957,20.16628195,152.61,152.57,0.04763208]
[1724461801262,3.2743,152.58,152.57,0.04763208]
[1724461801448,20.16628195,152.61,152.57,0.04763208]
[1724461801757,3.2742,152.59,152.57,0.04763208]
[1724461802760,3.2739,152.6,152.57,0.04763208]
[1724461804359,0.04628195,152.61,152.57,0.04763208]
[1724461805154,0.04628195,152.61,152.58,3.2741]
[1724461805359,0.04628195,152.61,152.57,0.04763208]
[1724461805755,0.04628195,152.61,152.58,3.2741]
[1724461806357,3.31988195,152.61,152.58,3.2741]
[1724461806662,3.31988195,152.61,152.57,3.32203208]
[1724461807166,20.16628195,152.61,152.57,0.04763208]
[1724461807359,6.5481221,152.6,152.57,0.04763208]
[1724461807559,6.5481221,152.59,152.57,0.04763208]
[1724461807760,3.2742,152.59,152.57,0.04763208]
[1724461808164,6.54842751,152.58,152.57,0.04763208]
[1724461809459,6.54842751,152.58,152.57,3.32213208]
[1724461810292,3.32008195,152.61,152.57,3.32213208]
[1724461810293,3.32008195,152.61,152.58,3.2742]
[1724461810576,6.54787361,152.6,152.57,0.04763208]
[1724461810771,0.04628195,152.61,152.57,0.04763208]
[1724461812276,6.54682956,152.6,152.58,3.2743]
[1724461812574,0.04628195,152.61,152.58,3.2743]
[1724461812773,6.54683033,152.6,152.58,3.2743]
[1724461812969,0.04628195,152.61,152.57,0.04763208]
[1724461813171,6.54711376,152.6,152.57,0.04763208]
[1724461813375,6.54711376,152.59,152.57,0.04763208]
[1724461813572,0.04628195,152.61,152.57,0.04763208]
[1724461813773,6.54711866,152.6,152.57,0.04763208]
[1724461814076,6.54711866,152.59,152.57,0.04763208]
[1724461814276,6.54711866,152.58,152.57,0.04763208]
[1724461814866,3.31998195,152.61,152.57,0.04763208]
[1724461815070,6.5478621,152.6,152.57,0.04763208]
[1724461815277,6.5478621,152.59,152.57,0.04763208]
[1724461815465,6.5478621,152.58,152.57,0.04763208]
[1724461816874,6.5478621,152.58,152.57,3.32213208]
[1724461817185,3.31998195,152.61,152.57,3.32213208]
[1724461817371,6.54735898,152.58,152.57,3.32213208]
[1724461817772,6.54735898,152.6,152.57,3.32213208]
[1724461817974,6.54735898,152.58,152.57,3.32213208]
[1724461820776,6.54735898,152.58,152.57,0.04763208]
[1724461821190,20.16628195,152.61,152.57,0.04763208]
[1724461821380,6.54812396,152.58,152.57,0.04763208]
[1724461825879,9.82242396,152.58,152.57,0.04763208]
[1724461827607,3.2741,152.59,152.57,0.04763208]
[1724461827780,6.54857306,152.58,152.57,0.04763208]
[1724461831114,3.2742,152.59,152.57,0.04763208]
[1724461831476,6.54817814,152.58,152.57,0.04763208]
[1724461832984,9.82247814,152.58,152.57,0.04763208]
[1724461834281,6.54817814,152.58,152.57,0.04763208]
[1724461836692,9.82247814,152.58,152.57,0.04763208]
[1724461837779,3.2755,152.53,152.49,26.2]
[1724461838091,6.54817814,152.52,152.49,26.2]
[1724461838488,6.54817814,152.51,152.49,26.2]
[1724461838690,6.54817814,152.5,152.49,26.2]
[1724461839185,6.54817814,152.5,152.49,29.4762]
[1724461839585,0.04723615,152.51,152.49,29.4762]
[1724461839986,6.55071483,152.5,152.49,26.2]
[1724461840583,0.04723615,152.51,152.49,26.2]
[1724461840782,20.12,152.59,152.49,26.2]
[1724461840985,6.54989818,152.58,152.5,20.12]
[1724461841290,6.54989818,152.57,152.53,23.3952]
[1724461841606,6.54910714,152.56,152.53,23.3952]
[1724461841781,6.54910714,152.55,152.53,23.43765213]
[1724461841991,6.54897438,152.54,152.53,23.43765213]
[1724461842191,0.04375579,152.56,152.53,23.43765213]
[1724461842688,6.54885641,152.55,152.53,23.43765213]
[1724461842888,0.04375579,152.56,152.53,23.43765213]
[1724461843093,6.54889129,152.55,152.53,23.43765213]
[1724461843288,0.04375579,152.56,152.53,23.43765213]
[1724461843487,6.54889051,152.55,152.53,23.43765213]
[1724461843691,0.04375579,152.56,152.53,23.43765213]
[1724461843891,6.54889129,152.55,152.53,23.43765213]
[1724461844094,0.04375579,152.56,152.53,23.43765213]
[1724461844489,6.548895,152.55,152.53,23.43765213]
[1724461844787,0.04375579,152.56,152.53,23.43765213]
[1724461844986,6.54889623,152.55,152.53,23.43765213]
[1724461845187,0.04375579,152.56,152.54,3.2751]
[1724461845590,0.04375579,152.56,152.55,20.12]
[1724461845787,6.59253263,152.56,152.55,20.12]
[1724461846690,6.59253263,152.56,152.55,23.3949]
[1724461847896,6.59253263,152.56,152.54,1.3324]
[1724461848092,6.59253263,152.56,152.53,0.04245213]
[1724461848093,6.54877684,152.55,152.53,0.04245213]
[1724461848291,6.54877684,152.54,152.53,0.04245213]
[1724461848591,6.54955124,152.54,152.53,0.04245213]
[1724461849189,6.54918408,152.54,152.53,0.04245213]
[1724461852023,3.2749,152.55,152.53,0.04245213]
[1724461852192,9.82464903,152.54,152.53,0.04245213]
[1724461852513,3.2751,152.54,152.53,0.04245213]
[1724461852795,6.59779699,152.54,152.53,0.04245213]
[1724461852990,3.2751,152.54,152.53,0.04245213]
[1724461853191,9.82601621,152.54,152.53,0.04245213]
[1724461854796,13.02196271,152.54,152.53,0.04245213]
[1724461855506,6.4710465,152.54,152.53,0.04245213]
[1724461855703,13.0223326,152.54,152.53,0.04245213]
[1724461856196,9.7472326,152.54,152.49,26.2]
[1724461856402,6.5512861,152.53,152.49,26.2]
[1724461856701,6.5512861,152.52,152.49,26.2]
[1724461856896,9.8272861,152.51,152.49,26.2]
[1724461857202,6.5512861,152.5,152.49,26.2]
[1724461857400,0.04183791,152.52,152.49,26.2]
[1724461857603,6.5514003,152.51,152.49,26.2]
[1724461857901,3.31753791,152.52,152.49,26.2]
[1724461858097,6.5513985,152.51,152.49,26.2]
[1724461858298,3.31753791,152.52,152.49,26.2]
[1724461858501,6.55139919,152.51,152.49,26.2]
[1724461858800,0.04183791,152.52,152.49,26.2]
[1724461860398,0.04183791,152.52,152.48,0.0417864]
[1724461861199,0.04183791,152.52,152.5,3.2758]
[1724461861499,0.04183791,152.52,152.48,0.0417864]
[1724461862008,0.04183791,152.52,152.51,3.2758]
[1724461862306,0.04183791,152.52,152.51,23.3958]
[1724461862504,3.2748,152.56,152.52,3.2755]
[1724461862701,6.54980476,152.55,152.52,3.2755]
[1724461862899,3.2748,152.56,152.52,3.2755]
[1724461863104,6.54955977,152.55,152.52,3.2755]
[1724461863299,3.2748,152.56,152.52,3.2755]
[1724461863506,6.54958097,152.55,152.52,3.31680083]
[1724461863807,3.32443689,152.56,152.52,3.31680083]
[1724461864008,6.54958097,152.55,152.52,3.31680083]
[1724461864209,3.32443689,152.56,152.52,3.31680083]
[1724461864408,6.54958097,152.55,152.52,3.31680083]
[1724461864610,3.32443689,152.56,152.52,3.31680083]
[1724461864802,6.54954608,152.55,152.52,3.31680083]
[1724461865017,3.32443689,152.56,152.52,3.31680083]
[1724461865412,6.54954608,152.55,152.52,3.31680083]
[1724461865602,3.32443689,152.56,152.52,3.31680083]
[1724461865904,6.54954608,152.55,152.52,3.31680083]
[1724461866108,3.32443689,152.56,152.52,3.31680083]
[1724461866408,6.54954608,152.55,152.52,3.31680083]
[1724461866707,3.32443689,152.56,152.52,3.31680083]
[1724461866910,6.54954608,152.55,152.52,3.31680083]
[1724461867104,3.32443689,152.56,152.52,3.31680083]
[1724461867409,6.54954608,152.55,152.52,3.31680083]
[1724461867605,0.04963689,152.56,152.52,0.04130083]
[1724461868425,0.04963689,152.56,152.53,3.2752]
[1724461868712,0.04963689,152.56,152.52,0.04130083]
[1724461869409,0.04963689,152.56,152.54,20.12]
[1724461870008,0.04963689,152.56,152.55,3.2749]
[1724461870407,20.12,152.65,152.55,20.12]
[1724461870707,3.2738,152.61,152.57,3.2744]
[1724461870905,6.54808485,152.6,152.57,3.2744]
[1724461871208,6.54808485,152.59,152.57,3.2744]
[1724461871403,3.2738,152.61,152.57,3.2744]
[1724461871599,6.56845451,152.6,152.57,3.2744]
[1724461871811,6.5479633,152.59,152.57,3.2744]
[1724461872011,0.02049121,152.6,152.57,3.2744]
[1724461872431,6.54796065,152.59,152.57,3.2744]
[1724461872612,0.02049121,152.6,152.57,3.2744]
[1724461873107,6.54796116,152.59,152.57,3.2744]
[1724461873310,0.02049121,152.6,152.57,3.2744]
[1724461873505,6.54796547,152.59,152.57,3.2744]
[1724461873705,0.02049121,152.6,152.57,3.2744]
[1724461874106,6.54810039,152.59,152.57,3.2744]
[1724461874304,3.29439121,152.6,152.57,3.2744]
[1724461874510,6.54803061,152.59,152.57,3.2744]
[1724461874701,3.29439121,152.6,152.57,3.2744]
[1724461875012,6.54803588,152.59,152.57,3.2744]
[1724461875308,6.54803588,152.58,152.57,3.2744]
[1724461875807,6.54859284,152.58,152.57,3.2744]
[1724461876509,6.54859284,152.58,152.56,3.32126804]
[1724461876705,3.29439121,152.6,152.56,3.32126804]
[1724461876900,6.54838392,152.59,152.56,3.32126804]
[1724461877104,6.54838392,152.58,152.56,3.32126804]
[1724461877305,3.29439121,152.6,152.56,3.32126804]
[1724461877501,6.5485974,152.59,152.56,3.32126804]
[1724461877702,6.5485974,152.58,152.56,3.32126804]
[1724461877907,3.29439121,152.6,152.56,3.32126804]
[1724461878114,6.54852765,152.59,152.56,3.32126804]
[1724461878412,6.54852765,152.58,152.56,3.32126804]
[1724461878613,3.29439121,152.6,152.56,3.32126804]
[1724461878813,6.54838815,152.59,152.56,3.32126804]
[1724461879019,3.29439121,152.6,152.56,3.32126804]
[1724461879308,6.54838815,152.58,152.56,3.32126804]
[1724461879514,3.29439121,152.6,152.56,3.32126804]
[1724461879714,6.54838815,152.59,152.56,3.32126804]
[1724461879915,6.54838815,152.58,152.56,3.32126804]
[1724461880116,3.29439121,152.6,152.56,3.32126804]
[1724461880415,9.82234866,152.59,152.56,3.32126804]
[1724461880715,6.54824866,152.58,152.56,3.32126804]
[1724461881011,3.2741,152.59,152.56,3.32126804]
[1724461881216,6.54817892,152.58,152.56,3.32126804]
[1724461881411,3.2741,152.59,152.56,3.32126804]
[1724461881614,6.54839272,152.58,152.56,3.32126804]
[1724461881813,3.2741,152.59,152.56,3.32126804]
[1724461882015,6.54839194,152.58,152.56,3.32126804]
[1724461882215,3.2741,152.59,152.56,3.32126804]
[1724461882619,6.54842387,152.58,152.56,3.32126804]
[1724461882843,6.54842387,152.57,152.56,3.32126804]
[1724461883016,3.2741,152.59,152.56,3.32126804]
[1724461883317,6.54846036,152.57,152.56,0.04656804]
[1724461885115,6.54846036,152.57,152.56,3.32126804]
[1724461885843,3.2741,152.59,152.56,3.32126804]
[1724461886013,6.54859685,152.58,152.56,3.32126804]
[1724461886209,6.54859685,152.57,152.56,3.32126804]
[1724461886627,6.54846114,152.57,152.56,3.32126804]
[1724461889431,3.2741,152.59,152.56,3.32126804]
[1724461889621,6.54842626,152.58,152.56,3.32126804]
[1724461889825,6.54842626,152.57,152.56,3.32126804]
[1724461891925,0.02049121,152.6,152.57,3.2744]
[1724461892117,6.54796523,152.59,152.57,3.2744]
[1724461892321,6.54796523,152.58,152.57,3.2744]
[1724461892727,0.02049121,152.6,152.57,3.2744]
[1724461893123,6.54795952,152.59,152.57,3.2744]
[1724461893325,0.02049121,152.6,152.57,3.2744]
[1724461893525,6.54796115,152.59,152.57,3.2744]
[1724461893726,0.02049121,152.6,152.57,3.2744]
[1724461893927,6.5479577,152.59,152.57,3.2744]
[1724461894123,0.02049121,152.6,152.56,0.04656804]
[1724461894329,0.02049121,152.6,152.57,20.12]
[1724461895418,0.02049121,152.6,152.58,3.2741]
[1724461896421,0.02049121,152.6,152.57,20.12]
[1724461897134,0.02049121,152.6,152.58,3.2741]
[1724461898427,0.02049121,152.6,152.59,3.2741]
[1724461899127,0.02049121,152.6,152.59,23.3941]
[1724461899725,0.02049121,152.6,152.58,20.12]
[1724461901433,0.02049121,152.6,152.59,3.2741]
[1724461902331,0.02049121,152.6,152.58,3.2741]
[1724461903065,3.2734,152.62,152.56,0.04656804]
[1724461903066,0.5379,152.71,152.6,3.2736]
[1724461903227,20.12,152.67,152.6,3.2736]
[1724461903436,3.2731,152.64,152.57,20.12]
[1724461903940,6.54637633,152.63,152.57,20.12]
[1724461904137,3.2731,152.64,152.59,0.04648999]
[1724461904338,6.54625775,152.63,152.6,3.2737]
[1724461904538,3.2731,152.64,152.6,3.2737]
[1724461904930,6.5462577,152.63,152.6,3.2737]
[1724461905136,3.2725,152.67,152.62,3.2732]
[1724461905335,6.54615571,152.66,152.63,0.04196152]
[1724461905537,3.20091736,152.72,152.63,0.04748816]
[1724461905738,20.12,152.72,152.63,3.38709545]
[1724461905939,9.83090791,152.71,152.63,3.38709545]
[1724461906247,3.2722,152.68,152.63,6.66029545]
[1724461906434,6.54498048,152.67,152.63,6.66029545]
[1724461906639,3.2722,152.68,152.63,6.66029545]
[1724461906840,9.81722616,152.67,152.63,6.66029545]
[1724461907040,0.5369,152.76,152.64,20.12]
[1724461907237,6.54479017,152.75,152.73,20.12]
[1724461907444,20.12,152.84,152.73,23.31626177]
[1724461907644,6.53994361,152.83,152.77,0.04497687]
[1724461907839,6.53994361,152.82,152.77,0.04497687]
[1724461908041,6.53994361,152.81,152.77,0.04497687]
[1724461908242,20.12,152.82,152.77,0.04497687]
[1724461908449,6.53906505,152.81,152.77,0.04497687]
[1724461908646,6.53906505,152.8,152.77,0.04497687]
[1724461908951,3.2691,152.82,152.77,0.04323531]
[1724461910648,3.2691,152.82,152.77,3.31333531]
[1724461910946,3.2694,152.81,152.77,3.31333531]
[1724461911151,3.2694,152.81,152.77,0.04323531]
[1724461911943,3.2696,152.8,152.77,0.04323531]
[1724461912461,3.21753527,152.85,152.79,20.12]
[1724461912649,20.12,152.88,152.8,0.04826418]
[1724461912855,20.12,152.88,152.81,20.12]
[1724461913175,3.2687,152.85,152.81,20.12]
[1724461913454,20.12,152.87,152.8,0.04826418]
[1724461913840,20.12,152.84,152.8,0.04826418]
[1724461914047,20.12,152.84,152.8,0.04723807]
[1724461914248,20.12,152.84,152.74,24.6596]
[1724461914443,20.12,152.82,152.74,20.12]
[1724461914643,20.12,152.8,152.72,21.4722]
[1724461915042,0.2266,152.85,152.68,20.12]
[1724461915344,0.04340219,152.78,152.75,0.04898741]
[1724461915653,0.0445902,152.78,152.75,0.04216168]
[1724461916040,3.3146902,152.78,152.75,0.04216168]
[1724461916242,0.0445902,152.78,152.75,0.04216168]
[1724461916562,0.0445902,152.78,152.75,3.31276168]
[1724461916943,0.0445902,152.78,152.76,3.2704]
[1724461917147,0.0445902,152.78,152.75,0.04216168]
[1724461919255,0.0445902,152.78,152.75,3.31276168]
[1724461921053,0.0445902,152.78,152.75,0.04216168]
[1724461921252,20.1645902,152.78,152.75,0.04216168]
[1724461922054,20.12,152.76,152.68,20.12]
[1724461922256,20.12,152.74,152.66,46.28]
[1724461922472,20.12,152.74,152.66,26.16]
[1724461922751,3.2717,152.7,152.66,29.4325]
[1724461922946,20.12,152.76,152.67,20.12]
[1724461923148,0.04732901,152.7,152.67,20.12]
[1724461923558,0.04732901,152.7,152.68,20.12]
[1724461924555,0.04732901,152.7,152.69,3.2719]
[1724461926748,0.04732901,152.7,152.68,23.3921]
[1724461928358,0.04732901,152.7,152.69,3.2719]
[1724461928960,0.04732901,152.7,152.68,23.3921]
[1724461929754,0.04732901,152.7,152.67,0.04363575]
[1724461929958,3.31922901,152.7,152.67,0.04363575]
[1724461930157,0.04732901,152.7,152.67,0.04363575]
[1724461932257,0.04732901,152.7,152.67,3.31583575]
[1724461933866,3.31912901,152.7,152.67,0.04363575]
[1724461934956,0.04732901,152.7,152.67,0.04363575]
[1724461936262,3.2721,152.69,152.67,0.04363575]
[1724461937259,0.04732901,152.7,152.68,3.272]
[1724461937457,0.04732901,152.7,152.67,0.04363575]
[1724461937458,0.04732901,152.7,152.69,20.12]
[1724461938265,0.04732901,152.7,152.67,20.16363575]
[1724461938564,0.04732901,152.7,152.68,3.2719]
[1724461940264,0.04732901,152.7,152.67,0.04363575]
[1724461940971,3.2721,152.68,152.67,0.04363575]
[1724461941365,6.51127497,152.68,152.67,0.04363575]
[1724461942063,23.35917497,152.68,152.57,20.12]
[1724461942459,3.2731,152.64,152.57,20.12]
[1724461942668,20.12,152.66,152.56,28.8305]
[1724461943063,0.04555838,152.63,152.59,0.04917598]
[1724461943266,3.31895838,152.63,152.59,0.04917598]
[1724461943863,0.04555838,152.63,152.59,3.32307598]
[1724461946671,3.31875838,152.63,152.59,3.32307598]
[1724461947572,3.2735,152.62,152.59,0.04917598]
[1724461948663,3.31885838,152.63,152.59,0.04917598]
[1724461950270,3.31885838,152.63,152.59,3.32317598]
[1724461952771,3.31885838,152.63,152.6,3.2738]
[1724461954271,0.04555838,152.63,152.61,3.2736]
[1724461955389,0.04555838,152.63,152.59,20.16917598]
[1724461955873,0.04555838,152.63,152.6,3.2737]
[1724461956382,0.04555838,152.63,152.59,23.52220323]
[1724461957180,0.04555838,152.63,152.62,3.2734]
[1724461957782,20.12,152.7,152.63,3.273]
[1724461958703,3.2726,152.66,152.63,3.273]
[1724461958887,3.31635379,152.66,152.63,3.31671363]
[1724461960483,3.31635379,152.66,152.63,0.04371363]
[1724461961677,3.31635379,152.66,152.63,3.31691363]
[1724461965586,3.31635379,152.66,152.63,0.04371363]
[1724461967282,3.31635379,152.66,152.63,3.31691363]
[1724461968385,3.2728,152.65,152.63,0.04371363]
[1724461969492,3.31635379,152.66,152.63,0.04371363]
[1724461971392,3.2729,152.65,152.63,0.04371363]
[1724461972395,3.31635379,152.66,152.63,0.04371363]
[1724461977289,3.2728,152.65,152.63,0.04371363]
[1724461979091,3.273,152.64,152.63,0.04371363]
[1724461980692,20.12,152.64,152.58,1.3442]
[1724461980899,20.12,152.64,152.56,26.18]
[1724461981099,20.12,152.64,152.57,3.2743]
[1724461981396,3.2738,152.61,152.57,3.2743]
[1724461981591,20.12,152.64,152.58,3.2743]
[1724461981798,0.04169794,152.61,152.58,3.2743]
[1724461982795,3.31529794,152.61,152.58,3.2743]
[1724461983393,0.04169794,152.61,152.57,0.04719789]
[1724461983589,3.2742,152.59,152.57,0.04719789]
[1724461988798,3.2743,152.58,152.57,0.04719789]
[1724461988999,20.12,152.58,152.41,344.0]
[1724461989207,6.54887342,152.57,152.48,2.6306]
[1724461989403,3.2751,152.55,152.48,2.6306]
[1724461990099,0.04523538,152.53,152.5,3.32299867]
[1724461990298,0.04523538,152.53,152.5,0.04719867]
[1724461990797,0.04523538,152.53,152.51,3.2756]
[1724461992895,0.04523538,152.53,152.5,3.32309867]
[1724461996398,3.32063538,152.53,152.5,3.32309867]
[1724461997106,0.04523538,152.53,152.5,3.32309867]
[1724461997698,0.04523538,152.53,152.5,0.04719867]
[1724461998503,3.2757,152.52,152.5,0.04719867]
[1724462000102,3.2758,152.51,152.5,0.04719867]
[1724462004014,20.12,152.52,152.42,3.23445954]
[1724462004015,20.12,152.52,152.42,3.24068406]
[1724462004610,20.12,152.52,152.41,4.1156]
[1724462004840,20.12,152.52,152.41,7.38128363]
[1724462005011,0.04645174,152.48,152.45,0.0477211]
[1724462005214,3.2769,152.46,152.45,0.0477211]
[1724462005716,6.54684264,152.46,152.45,0.0477211]
[1724462006512,3.2769,152.46,152.45,0.0477211]
[1724462017218,0.04645174,152.48,152.45,0.0477211]
[1724462018915,20.12,152.56,152.46,20.12]
[1724462019121,20.12,152.56,152.47,4.58621149]
[1724462019425,3.2754,152.53,152.48,23.46716268]
[1724462020118,0.04331919,152.52,152.49,0.04630113]
[1724462020918,0.04331919,152.52,152.5,3.2758]
[1724462024520,0.04331919,152.52,152.51,3.2758]
[1724462025027,0.04331919,152.52,152.49,1.43810113]
[1724462025525,0.04331919,152.52,152.5,3.2759]
[1724462025723,3.275,152.55,152.49,2.78510113]
[1724462026020,3.30860997,152.58,152.49,2.78510113]
[1724462026227,20.12,152.59,152.49,2.78510113]
[1724462026524,20.12,152.59,152.49,2.7388]
[1724462026726,0.04881713,152.56,152.52,0.04872101]
[1724462026917,3.32361713,152.56,152.52,3.32412101]
[1724462027524,0.04881713,152.56,152.52,0.04872101]
[1724462028514,3.2752,152.54,152.52,0.04872101]
[1724462034029,3.2753,152.53,152.52,0.04872101]
[1724462039032,3.2752,152.54,152.52,0.04872101]
[1724462039231,20.12,152.55,152.52,0.04872101]
[1724462039232,0.04881713,152.56,152.52,0.04872101]
[1724462039629,3.2751,152.55,152.52,0.04872101]
[1724462039830,0.04881713,152.56,152.52,0.04872101]